Workbook

Sheet 신청총괄표
A1: 2017년 도시민 상자텃밭 지원사업 선정 총괄표
G2: (단위 : 세트, 가구(단체))
A3: 구 분 | B3: 배정량 | C3: 신청 접수 및 선정 내역 | F3: 잔량 | G3: 비고
B4: 합계 | C4: 신청접수 | E4: 가구 (단체)수
C5: 종류 | D5: 수량
A6: 합 계 | B6: =SUM(B10,B14,B18,B22,B26,B30,B34,B38,B42,B46,B50,B54,B58) -> 800 | C6: 합계 | D6: =SUM(D7:D9) -> 800 | E6: =SUM(E7:E9) -> 243 | F6: 0 | G6: =SUM(G7:G9) -> 1
C7: ①기능성텃밭 | D7: =SUM(D11,D15,D19,D23,D27,D31,D35,D39,D43,D47,D51,D55,D59) -> 42 | E7: =SUM(E11,E15,E19,E23,E27,E31,E35,E39,E43,E47,E51,E55,E59) -> 17 | G7: =D7/$D$6 -> 0.0525
C8: ②착한농부 | D8: =SUM(D12,D16,D20,D24,D28,D32,D36,D40,D44,D48,D52,D56,D60) -> 371 | E8: 111 | G8: =D8/$D$6 -> 0.46375
C9: ③숨쉬는원목 | D9: =SUM(D13,D17,D21,D25,D29,D33,D37,D41,D45,D49,D53,D57,D61) -> 387 | E9: 115 | G9: 0.48375
A10: 오정동 | B10: 59 | C10: 소계 | D10: =SUM(D11:D13) -> 59 | E10: =SUM(E11:E13) -> 20
C11: ①기능성텃밭 | D11: =SUMIFS('대상(전체)'!$F$8:$F$262,'대상(전체)'!$E$8:$E$262,"1",'대상(전체)'!$A$8:$A$262,"오정동") -> 0 | E11: =COUNTIFS('대상(전체)'!$E$6:$E$272,"1",'대상(전체)'!$A$6:$A$272,"오정동") -> 0
C12: ②착한농부 | D12: =SUMIFS('대상(전체)'!$F$8:$F$262,'대상(전체)'!$E$8:$E$262,"2",'대상(전체)'!$A$8:$A$262,"오정동") -> 10 | E12: =COUNTIFS('대상(전체)'!$E$6:$E$272,"2",'대상(전체)'!$A$6:$A$272,"오정동") -> 3
C13: ③숨쉬는원목 | D13: =SUMIFS('대상(전체)'!$F$8:$F$262,'대상(전체)'!$E$8:$E$262,"3",'대상(전체)'!$A$8:$A$262,"오정동") -> 49 | E13: =COUNTIFS('대상(전체)'!$E$6:$E$272,"3",'대상(전체)'!$A$6:$A$272,"오정동") -> 17
A14: 대화동 | B14: 29 | C14: 소계 | D14: =SUM(D15:D17) -> 29 | E14: =SUM(E15:E17) -> 9
C15: ①기능성텃밭 | D15: =SUMIFS('대상(전체)'!$F$8:$F$262,'대상(전체)'!$E$8:$E$262,"1",'대상(전체)'!$A$8:$A$262,"대화동") -> 0 | E15: =COUNTIFS('대상(전체)'!$E$6:$E$272,"1",'대상(전체)'!$A$6:$A$272,"대화동") -> 0
C16: ②착한농부 | D16: =SUMIFS('대상(전체)'!$F$8:$F$262,'대상(전체)'!$E$8:$E$262,"2",'대상(전체)'!$A$8:$A$262,"대화동") -> 9 | E16: =COUNTIFS('대상(전체)'!$E$6:$E$272,"2",'대상(전체)'!$A$6:$A$272,"대화동") -> 3
C17: ③숨쉬는원목 | D17: =SUMIFS('대상(전체)'!$F$8:$F$262,'대상(전체)'!$E$8:$E$262,"3",'대상(전체)'!$A$8:$A$262,"대화동") -> 20 | E17: =COUNTIFS('대상(전체)'!$E$6:$E$272,"3",'대상(전체)'!$A$6:$A$272,"대화동") -> 6
A18: 회덕동 | B18: 51 | C18: 소계 | D18: =SUM(D19:D21) -> 51 | E18: =SUM(E19:E21) -> 17
C19: ①기능성텃밭 | D19: =SUMIFS('대상(전체)'!$F$8:$F$262,'대상(전체)'!$E$8:$E$262,"1",'대상(전체)'!$A$8:$A$262,"회덕동") -> 0 | E19: =COUNTIFS('대상(전체)'!$E$6:$E$272,"1",'대상(전체)'!$A$6:$A$272,"회덕동") -> 0
C20: ②착한농부 | D20: =SUMIFS('대상(전체)'!$F$8:$F$262,'대상(전체)'!$E$8:$E$262,"2",'대상(전체)'!$A$8:$A$262,"회덕동") -> 6 | E20: =COUNTIFS('대상(전체)'!$E$6:$E$272,"2",'대상(전체)'!$A$6:$A$272,"회덕동") -> 3
C21: ③숨쉬는원목 | D21: =SUMIFS('대상(전체)'!$F$8:$F$262,'대상(전체)'!$E$8:$E$262,"3",'대상(전체)'!$A$8:$A$262,"회덕동") -> 45 | E21: =COUNTIFS('대상(전체)'!$E$6:$E$272,"3",'대상(전체)'!$A$6:$A$272,"회덕동") -> 14
A22: 비래동 | B22: 54 | C22: 소계 | D22: =SUM(D23:D25) -> 54 | E22: =SUM(E23:E25) -> 17
C23: ①기능성텃밭 | D23: =SUMIFS('대상(전체)'!$F$8:$F$262,'대상(전체)'!$E$8:$E$262,"1",'대상(전체)'!$A$8:$A$262,"비래동") -> 1 | E23: =COUNTIFS('대상(전체)'!$E$6:$E$272,"1",'대상(전체)'!$A$6:$A$272,"비래동") -> 1
C24: ②착한농부 | D24: =SUMIFS('대상(전체)'!$F$8:$F$262,'대상(전체)'!$E$8:$E$262,"2",'대상(전체)'!$A$8:$A$262,"비래동") -> 43 | E24: =COUNTIFS('대상(전체)'!$E$6:$E$272,"2",'대상(전체)'!$A$6:$A$272,"비래동") -> 13
C25: ③숨쉬는원목 | D25: =SUMIFS('대상(전체)'!$F$8:$F$262,'대상(전체)'!$E$8:$E$262,"3",'대상(전체)'!$A$8:$A$262,"비래동") -> 10 | E25: =COUNTIFS('대상(전체)'!$E$6:$E$272,"3",'대상(전체)'!$A$6:$A$272,"비래동") -> 3
A26: 송촌동 | B26: 81 | C26: 소계 | D26: =SUM(D27:D29) -> 81 | E26: =SUM(E27:E29) -> 45
C27: ①기능성텃밭 | D27: =SUMIFS('대상(전체)'!$F$8:$F$262,'대상(전체)'!$E$8:$E$262,"1",'대상(전체)'!$A$8:$A$262,"송촌동") -> 9 | E27: =COUNTIFS('대상(전체)'!$E$6:$E$272,"1",'대상(전체)'!$A$6:$A$272,"송촌동") -> 6
C28: ②착한농부 | D28: =SUMIFS('대상(전체)'!$F$8:$F$262,'대상(전체)'!$E$8:$E$262,"2",'대상(전체)'!$A$8:$A$262,"송촌동") -> 35 | E28: =COUNTIFS('대상(전체)'!$E$6:$E$272,"2",'대상(전체)'!$A$6:$A$272,"송촌동") -> 20
C29: ③숨쉬는원목 | D29: =SUMIFS('대상(전체)'!$F$8:$F$262,'대상(전체)'!$E$8:$E$262,"3",'대상(전체)'!$A$8:$A$262,"송촌동") -> 37 | E29: =COUNTIFS('대상(전체)'!$E$6:$E$272,"3",'대상(전체)'!$A$6:$A$272,"송촌동") -> 19
A30: 중리동 | B30: 77 | C30: 소계 | D30: =SUM(D31:D33) -> 77 | E30: =SUM(E31:E33) -> 24
C31: ①기능성텃밭 | D31: =SUMIFS('대상(전체)'!$F$8:$F$262,'대상(전체)'!$E$8:$E$262,"1",'대상(전체)'!$A$8:$A$262,"중리동") -> 14 | E31: =COUNTIFS('대상(전체)'!$E$6:$E$272,"1",'대상(전체)'!$A$6:$A$272,"중리동") -> 4
C32: ②착한농부 | D32: =SUMIFS('대상(전체)'!$F$8:$F$262,'대상(전체)'!$E$8:$E$262,"2",'대상(전체)'!$A$8:$A$262,"중리동") -> 20 | E32: =COUNTIFS('대상(전체)'!$E$6:$E$272,"2",'대상(전체)'!$A$6:$A$272,"중리동") -> 8
C33: ③숨쉬는원목 | D33: =SUMIFS('대상(전체)'!$F$8:$F$262,'대상(전체)'!$E$8:$E$262,"3",'대상(전체)'!$A$8:$A$262,"중리동") -> 43 | E33: =COUNTIFS('대상(전체)'!$E$6:$E$272,"3",'대상(전체)'!$A$6:$A$272,"중리동") -> 12
A34: 법1동 | B34: 43 | C34: 소계 | D34: =SUM(D35:D37) -> 43 | E34: =SUM(E35:E37) -> 19
C35: ①기능성텃밭 | D35: =SUMIFS('대상(전체)'!$F$8:$F$262,'대상(전체)'!$E$8:$E$262,"1",'대상(전체)'!$A$8:$A$262,"법1동") -> 1 | E35: =COUNTIFS('대상(전체)'!$E$6:$E$272,"1",'대상(전체)'!$A$6:$A$272,"법1동") -> 1
C36: ②착한농부 | D36: =SUMIFS('대상(전체)'!$F$8:$F$262,'대상(전체)'!$E$8:$E$262,"2",'대상(전체)'!$A$8:$A$262,"법1동") -> 10 | E36: =COUNTIFS('대상(전체)'!$E$6:$E$272,"2",'대상(전체)'!$A$6:$A$272,"법1동") -> 5
C37: ③숨쉬는원목 | D37: =SUMIFS('대상(전체)'!$F$8:$F$262,'대상(전체)'!$E$8:$E$262,"3",'대상(전체)'!$A$8:$A$262,"법1동") -> 32 | E37: =COUNTIFS('대상(전체)'!$E$6:$E$272,"3",'대상(전체)'!$A$6:$A$272,"법1동") -> 13
A38: 법2동 | B38: 54 | C38: 소계 | D38: =SUM(D39:D41) -> 54 | E38: =SUM(E39:E41) -> 19
C39: ①기능성텃밭 | D39: =SUMIFS('대상(전체)'!$F$8:$F$262,'대상(전체)'!$E$8:$E$262,"1",'대상(전체)'!$A$8:$A$262,"법2동") -> 8 | E39: =COUNTIFS('대상(전체)'!$E$6:$E$272,"1",'대상(전체)'!$A$6:$A$272,"법2동") -> 2
C40: ②착한농부 | D40: =SUMIFS('대상(전체)'!$F$8:$F$262,'대상(전체)'!$E$8:$E$262,"2",'대상(전체)'!$A$8:$A$262,"법2동") -> 21 | E40: =COUNTIFS('대상(전체)'!$E$6:$E$272,"2",'대상(전체)'!$A$6:$A$272,"법2동") -> 9
C41: ③숨쉬는원목 | D41: =SUMIFS('대상(전체)'!$F$8:$F$262,'대상(전체)'!$E$8:$E$262,"3",'대상(전체)'!$A$8:$A$262,"법2동") -> 25 | E41: =COUNTIFS('대상(전체)'!$E$6:$E$272,"3",'대상(전체)'!$A$6:$A$272,"법2동") -> 8
A42: 신탄진동 | B42: 41 | C42: 소계 | D42: =SUM(D43:D45) -> 41 | E42: =SUM(E43:E45) -> 12
C43: ①기능성텃밭 | D43: =SUMIFS('대상(전체)'!$F$8:$F$262,'대상(전체)'!$E$8:$E$262,"1",'대상(전체)'!$A$8:$A$262,"신탄진동") -> 4 | E43: =COUNTIFS('대상(전체)'!$E$6:$E$272,"1",'대상(전체)'!$A$6:$A$272,"신탄진동") -> 1
C44: ②착한농부 | D44: =SUMIFS('대상(전체)'!$F$8:$F$262,'대상(전체)'!$E$8:$E$262,"2",'대상(전체)'!$A$8:$A$262,"신탄진동") -> 16 | E44: =COUNTIFS('대상(전체)'!$E$6:$E$272,"2",'대상(전체)'!$A$6:$A$272,"신탄진동") -> 4
C45: ③숨쉬는원목 | D45: =SUMIFS('대상(전체)'!$F$8:$F$262,'대상(전체)'!$E$8:$E$262,"3",'대상(전체)'!$A$8:$A$262,"신탄진동") -> 21 | E45: =COUNTIFS('대상(전체)'!$E$6:$E$272,"3",'대상(전체)'!$A$6:$A$272,"신탄진동") -> 7
A46: 석봉동 | B46: 37 | C46: 소계 | D46: =SUM(D47:D49) -> 37 | E46: =SUM(E47:E49) -> 12
C47: ①기능성텃밭 | D47: =SUMIFS('대상(전체)'!$F$8:$F$262,'대상(전체)'!$E$8:$E$262,"1",'대상(전체)'!$A$8:$A$262,"석봉동") -> 0 | E47: =COUNTIFS('대상(전체)'!$E$6:$E$272,"1",'대상(전체)'!$A$6:$A$272,"석봉동") -> 0
C48: ②착한농부 | D48: =SUMIFS('대상(전체)'!$F$8:$F$262,'대상(전체)'!$E$8:$E$262,"2",'대상(전체)'!$A$8:$A$262,"석봉동") -> 28 | E48: =COUNTIFS('대상(전체)'!$E$6:$E$272,"2",'대상(전체)'!$A$6:$A$272,"석봉동") -> 9
C49: ③숨쉬는원목 | D49: =SUMIFS('대상(전체)'!$F$8:$F$262,'대상(전체)'!$E$8:$E$262,"3",'대상(전체)'!$A$8:$A$262,"석봉동") -> 9 | E49: =COUNTIFS('대상(전체)'!$E$6:$E$272,"3",'대상(전체)'!$A$6:$A$272,"석봉동") -> 3
A50: 덕암동 | B50: 50 | C50: 소계 | D50: =SUM(D51:D53) -> 50 | E50: =SUM(E51:E53) -> 16
C51: ①기능성텃밭 | D51: =SUMIFS('대상(전체)'!$F$8:$F$262,'대상(전체)'!$E$8:$E$262,"1",'대상(전체)'!$A$8:$A$262,"덕암동") -> 4 | E51: =COUNTIFS('대상(전체)'!$E$6:$E$272,"1",'대상(전체)'!$A$6:$A$272,"덕암동") -> 1
C52: ②착한농부 | D52: =SUMIFS('대상(전체)'!$F$8:$F$262,'대상(전체)'!$E$8:$E$262,"2",'대상(전체)'!$A$8:$A$262,"덕암동") -> 35 | E52: =COUNTIFS('대상(전체)'!$E$6:$E$272,"2",'대상(전체)'!$A$6:$A$272,"덕암동") -> 11
C53: ③숨쉬는원목 | D53: =SUMIFS('대상(전체)'!$F$8:$F$262,'대상(전체)'!$E$8:$E$262,"3",'대상(전체)'!$A$8:$A$262,"덕암동") -> 11 | E53: =COUNTIFS('대상(전체)'!$E$6:$E$272,"3",'대상(전체)'!$A$6:$A$272,"덕암동") -> 4
A54: 목상동 | B54: 24 | C54: 소계 | D54: =SUM(D55:D57) -> 24 | E54: =SUM(E55:E57) -> 14
C55: ①기능성텃밭 | D55: =SUMIFS('대상(전체)'!$F$8:$F$262,'대상(전체)'!$E$8:$E$262,"1",'대상(전체)'!$A$8:$A$262,"목상동") -> 1 | E55: =COUNTIFS('대상(전체)'!$E$6:$E$272,"1",'대상(전체)'!$A$6:$A$272,"목상동") -> 1
C56: ②착한농부 | D56: =SUMIFS('대상(전체)'!$F$8:$F$262,'대상(전체)'!$E$8:$E$262,"2",'대상(전체)'!$A$8:$A$262,"목상동") -> 17 | E56: =COUNTIFS('대상(전체)'!$E$6:$E$272,"2",'대상(전체)'!$A$6:$A$272,"목상동") -> 10
C57: ③숨쉬는원목 | D57: =SUMIFS('대상(전체)'!$F$8:$F$262,'대상(전체)'!$E$8:$E$262,"3",'대상(전체)'!$A$8:$A$262,"목상동") -> 6 | E57: =COUNTIFS('대상(전체)'!$E$6:$E$272,"3",'대상(전체)'!$A$6:$A$272,"목상동") -> 3
A58: 단체지원 | B58: 200 | C58: 소계 | D58: =SUM(D59:D61) -> 200 | E58: =SUM(E59:E61) -> 19
C59: ①기능성텃밭 | D59: =SUMIFS('대상(전체)'!$F$8:$F$262,'대상(전체)'!$E$8:$E$262,"1",'대상(전체)'!$A$8:$A$262,"단체") -> 0 | E59: =COUNTIFS('대상(전체)'!$E$6:$E$272,"1",'대상(전체)'!$A$6:$A$272,"단체") -> 0
C60: ②착한농부 | D60: =SUMIFS('대상(전체)'!$F$8:$F$262,'대상(전체)'!$E$8:$E$262,"2",'대상(전체)'!$A$8:$A$262,"단체") -> 121 | E60: =COUNTIFS('대상(전체)'!$E$6:$E$272,"2",'대상(전체)'!$A$6:$A$272,"단체") -> 13
C61: ③숨쉬는원목 | D61: =SUMIFS('대상(전체)'!$F$8:$F$262,'대상(전체)'!$E$8:$E$262,"3",'대상(전체)'!$A$8:$A$262,"단체") -> 79 | E61: =COUNTIFS('대상(전체)'!$E$6:$E$272,"3",'대상(전체)'!$A$6:$A$272,"단체") -> 6

Sheet 대상(전체)
A1: 2017년도 도시민 상자텃밭 지원사업 신청 및 선정내역
A3: 동명 | B3: 연번 | C3: 성명 | D3: 전화번호 (뒤 4자리) | E3: 종류 | F3: 수량 | G3: 총사업비 | L3: 비고
G4: 합계 | H4: 보조금(80%) | K4: 자부담 (20%)
H5: 소계 | I5: 시비 | J5: 구비
A6: 합 계 | C6: =COUNTA(C8:C27,C29:C37,C39:C48,C49:C55,C57:C73,C75:C90,C91:C95,C96:C119,C121:C144,C146:C164,C166:C184,C186:C197,C199:C210,C212:C224,C225:C227,C229:C242,C244:C262) -> 243 | F6: =SUBTOTAL(9,F7,F28,F38,F56,F74,F120,F145,F165,F185,F198,F211,F228,F243) -> 800 | G6: =SUBTOTAL(9,G7,G28,G38,G56,G74,G120,G145,G165,G185,G198,G211,G228,G243) -> 20000000 | H6: 16000000 | I6: 12000000 | J6: 4000000 | K6: 4000000
A7: 소계 | C7: =COUNTA(C8:C27)&"명" -> 20명 | F7: =SUM(F8:F27) -> 59 | G7: =SUM(G8:G27) -> 1475000 | H7: 1180000 | I7: 885000 | J7: 295000 | K7: 295000 | L7: 0
A8: 오정동 | B8: 1 | C8: 양○순 | D8: 6900 | E8: 2 | F8: 4 | G8: =F8*25000 -> 100000 | H8: =SUM(I8:J8) -> 80000 | I8: =G8*0.6 -> 60000 | J8: =G8*0.2 -> 20000 | K8: =G8*0.2 -> 20000
A9: 오정동 | B9: 2 | C9: 정○희 | D9: 5815 | E9: 3 | F9: 4 | G9: =F9*25000 -> 100000 | H9: =SUM(I9:J9) -> 80000 | I9: =G9*0.6 -> 60000 | J9: =G9*0.2 -> 20000 | K9: =G9*0.2 -> 20000
A10: 오정동 | B10: 3 | C10: 서○미 | D10: 4767 | E10: 3 | F10: 4 | G10: 100000 | H10: 80000 | I10: 60000 | J10: 20000 | K10: 20000
A11: 오정동 | B11: 4 | C11: 김○웅 | D11: 5678 | E11: 2 | F11: 4 | G11: 100000 | H11: 80000 | I11: 60000 | J11: 20000 | K11: 20000
A12: 오정동 | B12: 5 | C12: 이○현 | D12: 4778 | E12: 3 | F12: 4 | G12: 100000 | H12: 80000 | I12: 60000 | J12: 20000 | K12: 20000
A13: 오정동 | B13: 6 | C13: 신○선 | D13: 0055 | E13: 3 | F13: 4 | G13: 100000 | H13: 80000 | I13: 60000 | J13: 20000 | K13: 20000
A14: 오정동 | B14: 7 | C14: 시○숙 | D14: 5128 | E14: 3 | F14: 4 | G14: 100000 | H14: 80000 | I14: 60000 | J14: 20000 | K14: 20000
A15: 오정동 | B15: 8 | C15: 이○애 | D15: 2412 | E15: 3 | F15: 4 | G15: 100000 | H15: 80000 | I15: 60000 | J15: 20000 | K15: 20000
A16: 오정동 | B16: 9 | C16: 박○연 | D16: 5297 | E16: 3 | F16: 4 | G16: 100000 | H16: 80000 | I16: 60000 | J16: 20000 | K16: 20000
A17: 오정동 | B17: 10 | C17: 신○호 | D17: 0028 | E17: 3 | F17: 1 | G17: 25000 | H17: 20000 | I17: 15000 | J17: 5000 | K17: 5000
A18: 오정동 | B18: 11 | C18: 박○연 | D18: 4168 | E18: 3 | F18: 2 | G18: 50000 | H18: 40000 | I18: 30000 | J18: 10000 | K18: 10000
A19: 오정동 | B19: 12 | C19: 문○자 | D19: 4821 | E19: 3 | F19: 2 | G19: 50000 | H19: 40000 | I19: 30000 | J19: 10000 | K19: 10000
A20: 오정동 | B20: 13 | C20: 김○영 | D20: 1337 | E20: 3 | F20: 2 | G20: 50000 | H20: 40000 | I20: 30000 | J20: 10000 | K20: 10000
A21: 오정동 | B21: 14 | C21: 이○숙 | D21: 7227 | E21: 3 | F21: 4 | G21: 100000 | H21: 80000 | I21: 60000 | J21: 20000 | K21: 20000
A22: 오정동 | B22: 15 | C22: 김○영 | D22: 7743 | E22: 3 | F22: 2 | G22: 50000 | H22: 40000 | I22: 30000 | J22: 10000 | K22: 10000
A23: 오정동 | B23: 16 | C23: 함○자 | D23: 3188 | E23: 3 | F23: 2 | G23: 50000 | H23: 40000 | I23: 30000 | J23: 10000 | K23: 10000
A24: 오정동 | B24: 17 | C24: 김○수 | D24: 0056 | E24: 3 | F24: 2 | G24: 50000 | H24: 40000 | I24: 30000 | J24: 10000 | K24: 10000
A25: 오정동 | B25: 18 | C25: 강○희 | D25: 5997 | E25: 3 | F25: 2 | G25: 50000 | H25: 40000 | I25: 30000 | J25: 10000 | K25: 10000
A26: 오정동 | B26: 19 | C26: 이○배 | D26: 1122 | E26: 2 | F26: 2 | G26: 50000 | H26: 40000 | I26: 30000 | J26: 10000 | K26: 10000
A27: 오정동 | B27: 20 | C27: 고○분 | D27: 0373 | E27: 3 | F27: 2 | G27: 50000 | H27: 40000 | I27: 30000 | J27: 10000 | K27: 10000
A28: 소계 | C28: 8명 | F28: =SUM(F29:F37) -> 29 | G28: =SUM(G29:G37) -> 725000 | H28: 580000 | I28: 435000 | J28: 145000 | K28: 145000 | L28: 0
A29: 대화동 | B29: 1 | C29: 김○숙 | D29: 7576 | E29: 3 | F29: 4 | G29: 100000 | H29: =SUM(I29:J29) -> 80000 | I29: =G29*0.6 -> 60000 | J29: =G29*0.2 -> 20000 | K29: =G29*0.2 -> 20000
A30: 대화동 | B30: 2 | C30: 최○자 | D30: 2034 | E30: 3 | F30: 4 | G30: 100000 | H30: 80000 | I30: 60000 | J30: 20000 | K30: 20000
A31: 대화동 | B31: 3 | C31: 정○문 | D31: 1105 | E31: 3 | F31: 3 | G31: 75000 | H31: 60000 | I31: 45000 | J31: 15000 | K31: 15000
A32: 대화동 | B32: 4 | C32: 권○욱 | D32: 1577 | E32: 3 | F32: 3 | G32: 75000 | H32: 60000 | I32: 45000 | J32: 15000 | K32: 15000
A33: 대화동 | B33: 5 | C33: 김○이 | D33: 2372 | E33: 3 | F33: 4 | G33: 100000 | H33: 80000 | I33: 60000 | J33: 20000 | K33: 20000
A34: 대화동 | B34: 6 | C34: 조○순 | D34: 2372 | E34: 3 | F34: 2 | G34: 50000 | H34: 40000 | I34: 30000 | J34: 10000 | K34: 10000
A35: 대화동 | B35: 7 | C35: 조○형 | D35: 4429 | E35: 2 | F35: 4 | G35: 100000 | H35: 80000 | I35: 60000 | J35: 20000 | K35: 20000
A36: 대화동 | B36: 8 | C36: 최○식 | D36: 1018 | E36: 2 | F36: 4 | G36: 100000 | H36: 80000 | I36: 60000 | J36: 20000 | K36: 20000
A37: 대화동 | B37: 9 | C37: 황○포 | D37: 1120 | E37: 2 | F37: 1 | G37: 25000 | H37: 20000 | I37: 15000 | J37: 5000 | K37: 5000
A38: 소계 | C38: 17명 | F38: =SUM(F39:F55) -> 51 | G38: =SUM(G39:G55) -> 1275000 | H38: 1020000 | I38: 765000 | J38: 255000 | K38: 255000 | L38: 0
A39: 회덕동 | B39: 1 | C39: 송○수 | D39: 2768 | E39: 3 | F39: 2 | G39: 50000 | H39: =SUM(I39:J39) -> 40000 | I39: =G39*0.6 -> 30000 | J39: =G39*0.2 -> 10000 | K39: =G39*0.2 -> 10000
A40: 회덕동 | B40: 2 | C40: 차○미 | D40: 3465 | E40: 3 | F40: 2 | G40: 50000 | H40: 40000 | I40: 30000 | J40: 10000 | K40: 10000
A41: 회덕동 | B41: 3 | C41: 차○아 | D41: 0909 | E41: 2 | F41: 2 | G41: 50000 | H41: 40000 | I41: 30000 | J41: 10000 | K41: 10000
A42: 회덕동 | B42: 4 | C42: 차○아 | D42: 0909 | E42: 3 | F42: 2 | G42: 50000 | H42: 40000 | I42: 30000 | J42: 10000 | K42: 10000
A43: 회덕동 | B43: 5 | C43: 신○호 | D43: 8105 | E43: 2 | F43: 2 | G43: 50000 | H43: 40000 | I43: 30000 | J43: 10000 | K43: 10000
A44: 회덕동 | B44: 6 | C44: 신○호 | D44: 8105 | E44: 3 | F44: 2 | G44: 50000 | H44: 40000 | I44: 30000 | J44: 10000 | K44: 10000
A45: 회덕동 | B45: 7 | C45: 길○순 | D45: 4732 | E45: 3 | F45: 4 | G45: 100000 | H45: 80000 | I45: 60000 | J45: 20000 | K45: 20000
A46: 회덕동 | B46: 8 | C46: 이○희 | D46: 2387 | E46: 3 | F46: 4 | G46: 100000 | H46: 80000 | I46: 60000 | J46: 20000 | K46: 20000
A47: 회덕동 | B47: 9 | C47: 안○숙 | D47: 3159 | E47: 3 | F47: 2 | G47: 50000 | H47: 40000 | I47: 30000 | J47: 10000 | K47: 10000
A48: 회덕동 | B48: 10 | C48: 조○학 | D48: 7780 | E48: 3 | F48: 4 | G48: 100000 | H48: 80000 | I48: 60000 | J48: 20000 | K48: 20000
A49: 회덕동 | B49: 11 | C49: 이○민 | D49: 0156 | E49: 3 | F49: 4 | G49: 100000 | H49: 80000 | I49: 60000 | J49: 20000 | K49: 20000
A50: 회덕동 | B50: 12 | C50: 조○희 | D50: 1515 | E50: 3 | F50: 4 | G50: 100000 | H50: 80000 | I50: 60000 | J50: 20000 | K50: 20000
A51: 회덕동 | B51: 13 | C51: 강○미 | D51: 1287 | E51: 3 | F51: 4 | G51: 100000 | H51: 80000 | I51: 60000 | J51: 20000 | K51: 20000
A52: 회덕동 | B52: 14 | C52: 김○희 | D52: 3200 | E52: 3 | F52: 4 | G52: 100000 | H52: 80000 | I52: 60000 | J52: 20000 | K52: 20000
A53: 회덕동 | B53: 15 | C53: 김○숙 | D53: 5646 | E53: 3 | F53: 4 | G53: 100000 | H53: 80000 | I53: 60000 | J53: 20000 | K53: 20000
A54: 회덕동 | B54: 16 | C54: 문○순 | D54: 5646 | E54: 2 | F54: 2 | G54: 50000 | H54: 40000 | I54: 30000 | J54: 10000 | K54: 10000
A55: 회덕동 | B55: 17 | C55: 김○숙 | D55: 0965 | E55: 3 | F55: 3 | G55: 75000 | H55: 60000 | I55: 45000 | J55: 15000 | K55: 15000
A56: 소계 | C56: 17명 | F56: =SUM(F57:F73) -> 54 | G56: =SUM(G57:G73) -> 1350000 | H56: 1080000 | I56: 810000 | J56: 270000 | K56: 270000 | L56: 0
A57: 비래동 | B57: 1 | C57: 김○희 | D57: 1475 | E57: 2 | F57: 4 | G57: 100000 | H57: =SUM(I57:J57) -> 80000 | I57: =G57*0.6 -> 60000 | J57: =G57*0.2 -> 20000 | K57: =G57*0.2 -> 20000
A58: 비래동 | B58: 2 | C58: 이○연 | D58: 2307 | E58: 3 | F58: 4 | G58: 100000 | H58: 80000 | I58: 60000 | J58: 20000 | K58: 20000
A59: 비래동 | B59: 3 | C59: 박○화 | D59: 4322 | E59: 2 | F59: 4 | G59: 100000 | H59: 80000 | I59: 60000 | J59: 20000 | K59: 20000
A60: 비래동 | B60: 4 | C60: 이○덕 | D60: 5984 | E60: 2 | F60: 4 | G60: 100000 | H60: 80000 | I60: 60000 | J60: 20000 | K60: 20000
A61: 비래동 | B61: 5 | C61: 임○묵 | D61: 0309 | E61: 2 | F61: 1 | G61: 25000 | H61: 20000 | I61: 15000 | J61: 5000 | K61: 5000
A62: 비래동 | B62: 6 | C62: 신○환 | D62: 2484 | E62: 3 | F62: 4 | G62: 100000 | H62: 80000 | I62: 60000 | J62: 20000 | K62: 20000
A63: 비래동 | B63: 7 | C63: 유○순 | D63: 1138 | E63: 3 | F63: 2 | G63: 50000 | H63: 40000 | I63: 30000 | J63: 10000 | K63: 10000
A64: 비래동 | B64: 8 | C64: 김○현 | D64: 3920 | E64: 2 | F64: 4 | G64: 100000 | H64: 80000 | I64: 60000 | J64: 20000 | K64: 20000
A65: 비래동 | B65: 9 | C65: 노○호 | D65: 5931 | E65: 2 | F65: 4 | G65: 100000 | H65: 80000 | I65: 60000 | J65: 20000 | K65: 20000
A66: 비래동 | B66: 10 | C66: 유○열 | D66: 7765 | E66: 2 | F66: 4 | G66: 100000 | H66: 80000 | I66: 60000 | J66: 20000 | K66: 20000
A67: 비래동 | B67: 11 | C67: 배○연 | D67: 2786 | E67: 2 | F67: 4 | G67: 100000 | H67: 80000 | I67: 60000 | J67: 20000 | K67: 20000
A68: 비래동 | B68: 12 | C68: 장○영 | D68: 7573 | E68: 2 | F68: 2 | G68: 50000 | H68: 40000 | I68: 30000 | J68: 10000 | K68: 10000
A69: 비래동 | B69: 13 | C69: 양○선 | D69: 7512 | E69: 2 | F69: 4 | G69: 100000 | H69: 80000 | I69: 60000 | J69: 20000 | K69: 20000
A70: 비래동 | B70: 14 | C70: 유○자 | D70: 8168 | E70: 2 | F70: 2 | G70: 50000 | H70: 40000 | I70: 30000 | J70: 10000 | K70: 10000
A71: 비래동 | B71: 15 | C71: 김○미 | D71: 4633 | E71: 2 | F71: 4 | G71: 100000 | H71: 80000 | I71: 60000 | J71: 20000 | K71: 20000
A72: 비래동 | B72: 16 | C72: 이○숙 | D72: 6027 | E72: 2 | F72: 2 | G72: 50000 | H72: 40000 | I72: 30000 | J72: 10000 | K72: 10000
A73: 비래동 | B73: 17 | C73: 오○배 | D73: 8157 | E73: 1 | F73: 1 | G73: =F73*25000 -> 25000 | H73: 20000 | I73: 15000 | J73: 5000 | K73: 5000
A74: 소계 | C74: 45명 | F74: =SUM(F75:F119) -> 81 | G74: =SUM(G75:G119) -> 2025000 | H74: 1620000 | I74: 1215000 | J74: 405000 | K74: 405000 | L74: 0
A75: 송촌동 | B75: 1 | C75: 김○용 | D75: 3600 | E75: 3 | F75: 4 | G75: =F75*25000 -> 100000 | H75: =SUM(I75:J75) -> 80000 | I75: =G75*0.6 -> 60000 | J75: =G75*0.2 -> 20000 | K75: =G75*0.2 -> 20000
A76: 송촌동 | B76: 2 | C76: 고○선 | D76: 5850 | E76: 1 | F76: 2 | G76: 50000 | H76: 40000 | I76: 30000 | J76: 10000 | K76: 10000
A77: 송촌동 | B77: 3 | C77: 윤○란 | D77: 2472 | E77: 2 | F77: 1 | G77: 25000 | H77: 20000 | I77: 15000 | J77: 5000 | K77: 5000
A78: 송촌동 | B78: 4 | C78: 윤○란 | D78: 2472 | E78: 3 | F78: 1 | G78: 25000 | H78: 20000 | I78: 15000 | J78: 5000 | K78: 5000
A79: 송촌동 | B79: 5 | C79: 김○순 | D79: 2214 | E79: 2 | F79: 2 | G79: 50000 | H79: 40000 | I79: 30000 | J79: 10000 | K79: 10000
A80: 송촌동 | B80: 6 | C80: 이○영 | D80: 0410 | E80: 3 | F80: 4 | G80: 100000 | H80: 80000 | I80: 60000 | J80: 20000 | K80: 20000
A81: 송촌동 | B81: 7 | C81: 김○정 | D81: 4920 | E81: 2 | F81: 1 | G81: 25000 | H81: 20000 | I81: 15000 | J81: 5000 | K81: 5000
A82: 송촌동 | B82: 8 | C82: 김○정 | D82: 4920 | E82: 3 | F82: 1 | G82: 25000 | H82: 20000 | I82: 15000 | J82: 5000 | K82: 5000
A83: 송촌동 | B83: 9 | C83: 송○목 | D83: 8431 | E83: 3 | F83: 2 | G83: 50000 | H83: 40000 | I83: 30000 | J83: 10000 | K83: 10000
A84: 송촌동 | B84: 10 | C84: 김○화 | D84: 7679 | E84: 2 | F84: 2 | G84: 50000 | H84: 40000 | I84: 30000 | J84: 10000 | K84: 10000
A85: 송촌동 | B85: 11 | C85: 김○언 | D85: 7055 | E85: 2 | F85: 2 | G85: 50000 | H85: 40000 | I85: 30000 | J85: 10000 | K85: 10000
A86: 송촌동 | B86: 12 | C86: 최○옥 | D86: 7936 | E86: 1 | F86: 1 | G86: 25000 | H86: 20000 | I86: 15000 | J86: 5000 | K86: 5000
A87: 송촌동 | B87: 13 | C87: 김○현 | D87: 3963 | E87: 2 | F87: 4 | G87: 100000 | H87: 80000 | I87: 60000 | J87: 20000 | K87: 20000
A88: 송촌동 | B88: 14 | C88: 채○권 | D88: 5768 | E88: 2 | F88: 1 | G88: 25000 | H88: 20000 | I88: 15000 | J88: 5000 | K88: 5000
A89: 송촌동 | B89: 15 | C89: 채○권 | D89: 5768 | E89: 3 | F89: 1 | G89: 25000 | H89: 20000 | I89: 15000 | J89: 5000 | K89: 5000
A90: 송촌동 | B90: 16 | C90: 문○희 | D90: 7940 | E90: 2 | F90: 1 | G90: 25000 | H90: 20000 | I90: 15000 | J90: 5000 | K90: 5000
A91: 송촌동 | B91: 17 | C91: 최○호 | D91: 2705 | E91: 3 | F91: 2 | G91: 50000 | H91: 40000 | I91: 30000 | J91: 10000 | K91: 10000
A92: 송촌동 | B92: 18 | C92: 송○영 | D92: 5104 | E92: 2 | F92: 2 | G92: 50000 | H92: 40000 | I92: 30000 | J92: 10000 | K92: 10000
A93: 송촌동 | B93: 19 | C93: 노○연 | D93: 1805 | E93: 3 | F93: 2 | G93: 50000 | H93: 40000 | I93: 30000 | J93: 10000 | K93: 10000
A94: 송촌동 | B94: 20 | C94: 김○분 | D94: 0934 | E94: 3 | F94: 2 | G94: 50000 | H94: 40000 | I94: 30000 | J94: 10000 | K94: 10000
A95: 송촌동 | B95: 21 | C95: 손○주 | D95: 1605 | E95: 2 | F95: 2 | G95: 50000 | H95: 40000 | I95: 30000 | J95: 10000 | K95: 10000
A96: 송촌동 | B96: 22 | C96: 채○순 | D96: 2735 | E96: 1 | F96: 1 | G96: 25000 | H96: 20000 | I96: 15000 | J96: 5000 | K96: 5000
A97: 송촌동 | B97: 23 | C97: 곽○명 | D97: 010 | E97: 1 | F97: 2 | G97: 50000 | H97: 40000 | I97: 30000 | J97: 10000 | K97: 10000
A98: 송촌동 | B98: 24 | C98: 곽○명 | D98: 010 | E98: 3 | F98: 2 | G98: 50000 | H98: 40000 | I98: 30000 | J98: 10000 | K98: 10000
A99: 송촌동 | B99: 25 | C99: 안○숙 | D99: 8637 | E99: 2 | F99: 2 | G99: 50000 | H99: 40000 | I99: 30000 | J99: 10000 | K99: 10000
A100: 송촌동 | B100: 26 | C100: 최○미 | D100: 6516 | E100: 3 | F100: 2 | G100: 50000 | H100: 40000 | I100: 30000 | J100: 10000 | K100: 10000
A101: 송촌동 | B101: 27 | C101: 정○숙 | D101: 7012 | E101: 3 | F101: 2 | G101: 50000 | H101: 40000 | I101: 30000 | J101: 10000 | K101: 10000
A102: 송촌동 | B102: 28 | C102: 김○민 | D102: 4920 | E102: 2 | F102: 1 | G102: 25000 | H102: 20000 | I102: 15000 | J102: 5000 | K102: 5000
A103: 송촌동 | B103: 29 | C103: 김○민 | D103: 4920 | E103: 3 | F103: 1 | G103: 25000 | H103: 20000 | I103: 15000 | J103: 5000 | K103: 5000
A104: 송촌동 | B104: 30 | C104: 이○자 | D104: 3690 | E104: 3 | F104: 2 | G104: =F104*25000 -> 50000 | H104: =SUM(I104:J104) -> 40000 | I104: =G104*0.6 -> 30000 | J104: =G104*0.2 -> 10000 | K104: =G104*0.2 -> 10000
A105: 송촌동 | B105: 31 | C105: 박○식 | D105: 1005 | E105: 3 | F105: 4 | G105: 100000 | H105: 80000 | I105: 60000 | J105: 20000 | K105: 20000
A106: 송촌동 | B106: 32 | C106: 양○여 | D106: 6191 | E106: 2 | F106: 2 | G106: 50000 | H106: 40000 | I106: 30000 | J106: 10000 | K106: 10000
A107: 송촌동 | B107: 33 | C107: 양○여 | D107: 6191 | E107: 3 | F107: 2 | G107: 50000 | H107: 40000 | I107: 30000 | J107: 10000 | K107: 10000
A108: 송촌동 | B108: 34 | C108: 곽○현 | D108: 2381 | E108: 2 | F108: 1 | G108: 25000 | H108: 20000 | I108: 15000 | J108: 5000 | K108: 5000
A109: 송촌동 | B109: 35 | C109: 최○대 | D109: 7306 | E109: 1 | F109: 2 | G109: 50000 | H109: 40000 | I109: 30000 | J109: 10000 | K109: 10000
A110: 송촌동 | B110: 36 | C110: 최○대 | D110: 7306 | E110: 3 | F110: 1 | G110: 25000 | H110: 20000 | I110: 15000 | J110: 5000 | K110: 5000
A111: 송촌동 | B111: 37 | C111: 최○희 | D111: 2946 | E111: 1 | F111: 1 | G111: 25000 | H111: 20000 | I111: 15000 | J111: 5000 | K111: 5000
A112: 송촌동 | B112: 38 | C112: 최○희 | D112: 2946 | E112: 3 | F112: 1 | G112: 25000 | H112: 20000 | I112: 15000 | J112: 5000 | K112: 5000
A113: 송촌동 | B113: 39 | C113: 전○자 | D113: 9846 | E113: 2 | F113: 2 | G113: 50000 | H113: 40000 | I113: 30000 | J113: 10000 | K113: 10000
A114: 송촌동 | B114: 40 | C114: 김○숙 | D114: 0535 | E114: 2 | F114: 2 | G114: 50000 | H114: 40000 | I114: 30000 | J114: 10000 | K114: 10000
A115: 송촌동 | B115: 41 | C115: 김○학 | D115: 6487 | E115: 2 | F115: 2 | G115: 50000 | H115: 40000 | I115: 30000 | J115: 10000 | K115: 10000
A116: 송촌동 | B116: 42 | C116: 김○순 | D116: 7756 | E116: 2 | F116: 2 | G116: 50000 | H116: 40000 | I116: 30000 | J116: 10000 | K116: 10000
A117: 송촌동 | B117: 43 | C117: 최○자 | D117: 8030 | E117: 2 | F117: 1 | G117: 25000 | H117: 20000 | I117: 15000 | J117: 5000 | K117: 5000
A118: 송촌동 | B118: 44 | C118: 최○자 | D118: 8030 | E118: 3 | F118: 1 | G118: 25000 | H118: 20000 | I118: 15000 | J118: 5000 | K118: 5000
A119: 송촌동 | B119: 45 | C119: 이○홍 | D119: 4076 | E119: 2 | F119: 2 | G119: 50000 | H119: 40000 | I119: 30000 | J119: 10000 | K119: 10000
A120: 소계 | C120: 24명 | F120: =SUM(F121:F144) -> 77 | G120: =SUM(G121:G144) -> 1925000 | H120: 1540000 | I120: 1155000 | J120: 385000 | K120: 385000 | L120: 0
A121: 중리동 | B121: 1 | C121: 김○용 | D121: 3963 | E121: 1 | F121: 4 | G121: =F121*25000 -> 100000 | H121: =SUM(I121:J121) -> 80000 | I121: =G121*0.6 -> 60000 | J121: =G121*0.2 -> 20000 | K121: =G121*0.2 -> 20000
A122: 중리동 | B122: 2 | C122: 김○수 | D122: 2495 | E122: 1 | F122: 4 | G122: 100000 | H122: 80000 | I122: 60000 | J122: 20000 | K122: 20000
A123: 중리동 | B123: 3 | C123: 김○경 | D123: 3232 | E123: 1 | F123: 2 | G123: 50000 | H123: 40000 | I123: 30000 | J123: 10000 | K123: 10000
A124: 중리동 | B124: 4 | C124: 김○경 | D124: 3232 | E124: 2 | F124: 2 | G124: 50000 | H124: 40000 | I124: 30000 | J124: 10000 | K124: 10000
A125: 중리동 | B125: 5 | C125: 임○선 | D125: 5769 | E125: 1 | F125: 4 | G125: 100000 | H125: 80000 | I125: 60000 | J125: 20000 | K125: 20000
A126: 중리동 | B126: 6 | C126: 최○숙 | D126: 8002 | E126: 2 | F126: 2 | G126: 50000 | H126: 40000 | I126: 30000 | J126: 10000 | K126: 10000
A127: 중리동 | B127: 7 | C127: 최○숙 | D127: 8002 | E127: 3 | F127: 2 | G127: 50000 | H127: 40000 | I127: 30000 | J127: 10000 | K127: 10000
A128: 중리동 | B128: 8 | C128: 이○순 | D128: 0704 | E128: 3 | F128: 4 | G128: 100000 | H128: 80000 | I128: 60000 | J128: 20000 | K128: 20000
A129: 중리동 | B129: 9 | C129: 엄○화 | D129: 8413 | E129: 2 | F129: 1 | G129: 25000 | H129: 20000 | I129: 15000 | J129: 5000 | K129: 5000
A130: 중리동 | B130: 10 | C130: 박○현 | D130: 2279 | E130: 2 | F130: 4 | G130: 100000 | H130: 80000 | I130: 60000 | J130: 20000 | K130: 20000
A131: 중리동 | B131: 11 | C131: 김○하 | D131: 6723 | E131: 3 | F131: 4 | G131: 100000 | H131: 80000 | I131: 60000 | J131: 20000 | K131: 20000
A132: 중리동 | B132: 12 | C132: 박○서 | D132: 2144 | E132: 3 | F132: 4 | G132: 100000 | H132: 80000 | I132: 60000 | J132: 20000 | K132: 20000
A133: 중리동 | B133: 13 | C133: 강○자 | D133: 2176 | E133: 3 | F133: 4 | G133: 100000 | H133: 80000 | I133: 60000 | J133: 20000 | K133: 20000
A134: 중리동 | B134: 14 | C134: 박○기 | D134: 9516 | E134: 2 | F134: 4 | G134: 100000 | H134: 80000 | I134: 60000 | J134: 20000 | K134: 20000
A135: 중리동 | B135: 15 | C135: 진○희 | D135: 9046 | E135: 3 | F135: 2 | G135: 50000 | H135: 40000 | I135: 30000 | J135: 10000 | K135: 10000
A136: 중리동 | B136: 16 | C136: 이○종 | D136: 2206 | E136: 2 | F136: 2 | G136: 50000 | H136: 40000 | I136: 30000 | J136: 10000 | K136: 10000
A137: 중리동 | B137: 17 | C137: 신○정 | D137: 4527 | E137: 3 | F137: 4 | G137: 100000 | H137: 80000 | I137: 60000 | J137: 20000 | K137: 20000
A138: 중리동 | B138: 18 | C138: 김○애 | D138: 4875 | E138: 3 | F138: 4 | G138: 100000 | H138: 80000 | I138: 60000 | J138: 20000 | K138: 20000
A139: 중리동 | B139: 19 | C139: 손○숙 | D139: 2262 | E139: 3 | F139: 4 | G139: 100000 | H139: 80000 | I139: 60000 | J139: 20000 | K139: 20000
A140: 중리동 | B140: 20 | C140: 전○자 | D140: 1664 | E140: 3 | F140: 4 | G140: 100000 | H140: 80000 | I140: 60000 | J140: 20000 | K140: 20000
A141: 중리동 | B141: 21 | C141: 전○영 | D141: 0852 | E141: 3 | F141: 4 | G141: 100000 | H141: 80000 | I141: 60000 | J141: 20000 | K141: 20000
A142: 중리동 | B142: 22 | C142: 박○학 | D142: 4700 | E142: 3 | F142: 3 | G142: 75000 | H142: 60000 | I142: 45000 | J142: 15000 | K142: 15000
A143: 중리동 | B143: 23 | C143: 이○숙 | D143: 2851 | E143: 2 | F143: 3 | G143: 75000 | H143: 60000 | I143: 45000 | J143: 15000 | K143: 15000
A144: 중리동 | B144: 24 | C144: 이○화 | D144: 9876 | E144: 2 | F144: 2 | G144: 50000 | H144: 40000 | I144: 30000 | J144: 10000 | K144: 10000
A145: 소계 | C145: 19명 | F145: =SUM(F146:F164) -> 43 | G145: =SUM(G146:G164) -> 1075000 | H145: 860000 | I145: 645000 | J145: 215000 | K145: 215000 | L145: 0
A146: 법1동 | B146: 1 | C146: 김○화 | D146: 8536 | E146: 1 | F146: 1 | G146: =F146*25000 -> 25000 | H146: =SUM(I146:J146) -> 20000 | I146: =G146*0.6 -> 15000 | J146: =G146*0.2 -> 5000 | K146: =G146*0.2 -> 5000
A147: 법1동 | B147: 2 | C147: 표○주 | D147: 1649 | E147: 2 | F147: 2 | G147: 50000 | H147: 40000 | I147: 30000 | J147: 10000 | K147: 10000
A148: 법1동 | B148: 3 | C148: 안○숙 | D148: 7164 | E148: 2 | F148: 2 | G148: 50000 | H148: 40000 | I148: 30000 | J148: 10000 | K148: 10000
A149: 법1동 | B149: 4 | C149: 구○선 | D149: 6927 | E149: 2 | F149: 2 | G149: 50000 | H149: 40000 | I149: 30000 | J149: 10000 | K149: 10000
A150: 법1동 | B150: 5 | C150: 박○진 | D150: 7221 | E150: 2 | F150: 2 | G150: 50000 | H150: 40000 | I150: 30000 | J150: 10000 | K150: 10000
A151: 법1동 | B151: 6 | C151: 천○경 | D151: 3154 | E151: 2 | F151: 2 | G151: 50000 | H151: 40000 | I151: 30000 | J151: 10000 | K151: 10000
A152: 법1동 | B152: 7 | C152: 주○영 | D152: 8683 | E152: 3 | F152: 2 | G152: 50000 | H152: 40000 | I152: 30000 | J152: 10000 | K152: 10000
A153: 법1동 | B153: 8 | C153: 최○이 | D153: 4371 | E153: 3 | F153: 4 | G153: 100000 | H153: 80000 | I153: 60000 | J153: 20000 | K153: 20000
A154: 법1동 | B154: 9 | C154: 장○숙 | D154: 5278 | E154: 3 | F154: 4 | G154: 100000 | H154: 80000 | I154: 60000 | J154: 20000 | K154: 20000
A155: 법1동 | B155: 10 | C155: 공○택 | D155: 4101 | E155: 3 | F155: 2 | G155: 50000 | H155: 40000 | I155: 30000 | J155: 10000 | K155: 10000
A156: 법1동 | B156: 11 | C156: 이○남 | D156: 4545 | E156: 3 | F156: 1 | G156: 25000 | H156: 20000 | I156: 15000 | J156: 5000 | K156: 5000
A157: 법1동 | B157: 12 | C157: 지○선 | D157: 0995 | E157: 3 | F157: 1 | G157: 25000 | H157: 20000 | I157: 15000 | J157: 5000 | K157: 5000
A158: 법1동 | B158: 13 | C158: 문○자 | D158: 8842 | E158: 3 | F158: 3 | G158: 75000 | H158: 60000 | I158: 45000 | J158: 15000 | K158: 15000
A159: 법1동 | B159: 14 | C159: 이○애 | D159: 3972 | E159: 3 | F159: 3 | G159: 75000 | H159: 60000 | I159: 45000 | J159: 15000 | K159: 15000
A160: 법1동 | B160: 15 | C160: 남○○희 | D160: 5079 | E160: 3 | F160: 2 | G160: 50000 | H160: 40000 | I160: 30000 | J160: 10000 | K160: 10000
A161: 법1동 | B161: 16 | C161: 한○숙 | D161: 3244 | E161: 3 | F161: 2 | G161: 50000 | H161: 40000 | I161: 30000 | J161: 10000 | K161: 10000
A162: 법1동 | B162: 17 | C162: 신○옥 | D162: 1711 | E162: 3 | F162: 2 | G162: 50000 | H162: 40000 | I162: 30000 | J162: 10000 | K162: 10000
A163: 법1동 | B163: 18 | C163: 임○채 | D163: 1266 | E163: 3 | F163: 4 | G163: 100000 | H163: 80000 | I163: 60000 | J163: 20000 | K163: 20000
A164: 법1동 | B164: 19 | C164: 김○숙 | D164: 1370 | E164: 3 | F164: 2 | G164: 50000 | H164: 40000 | I164: 30000 | J164: 10000 | K164: 10000
A165: 소계 | C165: 19명 | F165: =SUM(F166:F184) -> 54 | G165: =SUM(G166:G184) -> 1350000 | H165: 1080000 | I165: 810000 | J165: 270000 | K165: 270000 | L165: 0
A166: 법2동 | B166: 1 | C166: 이○선 | D166: 9493 | E166: 2 | F166: 2 | G166: =F166*25000 -> 50000 | H166: =SUM(I166:J166) -> 40000 | I166: =G166*0.6 -> 30000 | J166: =G166*0.2 -> 10000 | K166: =G166*0.2 -> 10000
A167: 법2동 | B167: 2 | C167: 김○용 | D167: 9481 | E167: 3 | F167: 2 | G167: 50000 | H167: 40000 | I167: 30000 | J167: 10000 | K167: 10000
A168: 법2동 | B168: 3 | C168: 김○숙 | D168: 5513 | E168: 2 | F168: 2 | G168: 50000 | H168: 40000 | I168: 30000 | J168: 10000 | K168: 10000
A169: 법2동 | B169: 4 | C169: 오○수 | D169: 4163 | E169: 1 | F169: 4 | G169: 100000 | H169: 80000 | I169: 60000 | J169: 20000 | K169: 20000
A170: 법2동 | B170: 5 | C170: 김○경 | D170: 4578 | E170: 3 | F170: 2 | G170: 50000 | H170: 40000 | I170: 30000 | J170: 10000 | K170: 10000
A171: 법2동 | B171: 6 | C171: 서○교 | D171: 6374 | E171: 1 | F171: 4 | G171: 100000 | H171: 80000 | I171: 60000 | J171: 20000 | K171: 20000
A172: 법2동 | B172: 7 | C172: 이○우 | D172: 9421 | E172: 2 | F172: 2 | G172: 50000 | H172: 40000 | I172: 30000 | J172: 10000 | K172: 10000
A173: 법2동 | B173: 8 | C173: 손○규 | D173: 7804 | E173: 2 | F173: 2 | G173: 50000 | H173: 40000 | I173: 30000 | J173: 10000 | K173: 10000
A174: 법2동 | B174: 9 | C174: 박○현 | D174: 3383 | E174: 3 | F174: 4 | G174: 100000 | H174: 80000 | I174: 60000 | J174: 20000 | K174: 20000
A175: 법2동 | B175: 10 | C175: 길○미 | D175: 8117 | E175: 3 | F175: 4 | G175: 100000 | H175: 80000 | I175: 60000 | J175: 20000 | K175: 20000
A176: 법2동 | B176: 11 | C176: 문○란 | D176: 6985 | E176: 2 | F176: 1 | G176: 25000 | H176: 20000 | I176: 15000 | J176: 5000 | K176: 5000
A177: 법2동 | B177: 12 | C177: 이○경 | D177: 6050 | E177: 3 | F177: 2 | G177: 50000 | H177: 40000 | I177: 30000 | J177: 10000 | K177: 10000
A178: 법2동 | B178: 13 | C178: 최○준 | D178: 9050 | E178: 3 | F178: 4 | G178: 100000 | H178: 80000 | I178: 60000 | J178: 20000 | K178: 20000
A179: 법2동 | B179: 14 | C179: 전○숙 | D179: 5583 | E179: 2 | F179: 4 | G179: 100000 | H179: 80000 | I179: 60000 | J179: 20000 | K179: 20000
A180: 법2동 | B180: 15 | C180: 정○한 | D180: 1996 | E180: 2 | F180: 4 | G180: 100000 | H180: 80000 | I180: 60000 | J180: 20000 | K180: 20000
A181: 법2동 | B181: 16 | C181: 이○묵 | D181: 3596 | E181: 3 | F181: 4 | G181: 100000 | H181: 80000 | I181: 60000 | J181: 20000 | K181: 20000
A182: 법2동 | B182: 17 | C182: 김○옥 | D182: 0594 | E182: 3 | F182: 3 | G182: 75000 | H182: 60000 | I182: 45000 | J182: 15000 | K182: 15000
A183: 법2동 | B183: 18 | C183: 이○욱 | D183: 2146 | E183: 2 | F183: 2 | G183: 50000 | H183: 40000 | I183: 30000 | J183: 10000 | K183: 10000
A184: 법2동 | B184: 19 | C184: 김○진 | D184: 8092 | E184: 2 | F184: 2 | G184: 50000 | H184: 40000 | I184: 30000 | J184: 10000 | K184: 10000
A185: 소계 | C185: 12명 | F185: =SUM(F186:F197) -> 41 | G185: =SUM(G186:G197) -> 1025000 | H185: 820000 | I185: 615000 | J185: 205000 | K185: 205000 | L185: 0
A186: 신탄진동 | B186: 1 | C186: 정○영 | D186: 7256 | E186: 3 | F186: 1 | G186: =F186*25000 -> 25000 | H186: =SUM(I186:J186) -> 20000 | I186: =G186*0.6 -> 15000 | J186: =G186*0.2 -> 5000 | K186: =G186*0.2 -> 5000
A187: 신탄진동 | B187: 2 | C187: 민○원 | D187: 4518 | E187: 3 | F187: 4 | G187: 100000 | H187: 80000 | I187: 60000 | J187: 20000 | K187: 20000
A188: 신탄진동 | B188: 3 | C188: 김○미 | D188: 0885 | E188: 3 | F188: 4 | G188: 100000 | H188: 80000 | I188: 60000 | J188: 20000 | K188: 20000
A189: 신탄진동 | B189: 4 | C189: 유○람 | D189: 4481 | E189: 3 | F189: 4 | G189: 100000 | H189: 80000 | I189: 60000 | J189: 20000 | K189: 20000
A190: 신탄진동 | B190: 5 | C190: 장○선 | D190: 5192 | E190: 3 | F190: 3 | G190: 75000 | H190: 60000 | I190: 45000 | J190: 15000 | K190: 15000
A191: 신탄진동 | B191: 6 | C191: 차○도 | D191: 1745 | E191: 1 | F191: 4 | G191: 100000 | H191: 80000 | I191: 60000 | J191: 20000 | K191: 20000
A192: 신탄진동 | B192: 7 | C192: 김○원 | D192: 7263 | E192: 2 | F192: 4 | G192: 100000 | H192: 80000 | I192: 60000 | J192: 20000 | K192: 20000
A193: 신탄진동 | B193: 8 | C193: 이○근 | D193: 1918 | E193: 2 | F193: 4 | G193: 100000 | H193: 80000 | I193: 60000 | J193: 20000 | K193: 20000
A194: 신탄진동 | B194: 9 | C194: 한○우 | D194: 8464 | E194: 2 | F194: 4 | G194: 100000 | H194: 80000 | I194: 60000 | J194: 20000 | K194: 20000
A195: 신탄진동 | B195: 10 | C195: 정○선 | D195: 3345 | E195: 2 | F195: 4 | G195: 100000 | H195: 80000 | I195: 60000 | J195: 20000 | K195: 20000
A196: 신탄진동 | B196: 11 | C196: 전○자 | D196: 9951 | E196: 3 | F196: 4 | G196: 100000 | H196: 80000 | I196: 60000 | J196: 20000 | K196: 20000
A197: 신탄진동 | B197: 12 | C197: 이○헌 | D197: 7284 | E197: 3 | F197: 1 | G197: 25000 | H197: 20000 | I197: 15000 | J197: 5000 | K197: 5000
A198: 소계 | C198: 12명 | F198: =SUM(F199:F210) -> 37 | G198: =SUM(G199:G210) -> 925000 | H198: 740000 | I198: 555000 | J198: 185000 | K198: 185000 | L198: 0
A199: 석봉동 | B199: 1 | C199: 박○영 | D199: 0943 | E199: 2 | F199: 3 | G199: =F199*25000 -> 75000 | H199: =SUM(I199:J199) -> 60000 | I199: =G199*0.6 -> 45000 | J199: =G199*0.2 -> 15000 | K199: =G199*0.2 -> 15000
A200: 석봉동 | B200: 2 | C200: 성○희 | D200: 0150 | E200: 2 | F200: 4 | G200: 100000 | H200: 80000 | I200: 60000 | J200: 20000 | K200: 20000
A201: 석봉동 | B201: 3 | C201: 한○옥 | D201: 2792 | E201: 3 | F201: 4 | G201: 100000 | H201: 80000 | I201: 60000 | J201: 20000 | K201: 20000
... 61 more rows
